bitfinex/quotes_BTCUSD_20250131
["timestamp","ask_amount","ask_price","bid_price","bid_amount"]
[1738341438008,0.79763,104920.0,104910.0,0.48621393]
[1738341439242,0.79663,104920.0,104910.0,0.48321393]
[1738341439652,0.79763,104920.0,104910.0,0.48821393]
[1738341439863,0.79663,104920.0,104910.0,0.48421393]
[1738341440066,0.79663,104920.0,104910.0,0.48721393]
[1738341440277,0.79763,104920.0,104910.0,0.48721393]
[1738341440498,0.79763,104920.0,104910.0,0.48921393]
[1738341441977,0.25083,104920.0,104910.0,0.48921393]
[1738341443149,0.25083,104920.0,104910.0,0.46458763]
[1738341443353,0.25083,104920.0,104910.0,0.33921393]
[1738341443813,0.25083,104920.0,104910.0,0.48921393]
[1738341448288,0.25083,104920.0,104910.0,0.58645709]
[1738341448504,0.193644,104920.0,104910.0,0.62606422]
[1738341448727,0.193644,104920.0,104910.0,0.59645709]
[1738341448863,0.193644,104920.0,104910.0,0.6260607]
[1738341449071,0.098334,104920.0,104910.0,0.6260607]
[1738341450459,0.002024,104920.0,104910.0,0.6200607]
[1738341450891,0.328722,104940.0,104930.0,0.2547263]
[1738341451111,0.328722,104940.0,104930.0,0.3976783]
[1738341452222,0.328722,104940.0,104930.0,0.3025783]
[1738341452460,0.328722,104940.0,104930.0,0.3055783]
[1738341452665,0.328722,104940.0,104930.0,0.3065783]
[1738341453421,0.328722,104940.0,104930.0,0.3215783]
[1738341454036,0.328722,104940.0,104930.0,0.33121711]
[1738341455243,0.328722,104940.0,104930.0,0.31621711]
[1738341456002,0.328722,104940.0,104930.0,0.18121711]
[1738341456440,0.328722,104940.0,104930.0,0.16621711]
[1738341456658,0.61390316,104940.0,104930.0,0.03526511]
[1738341456874,0.61390316,104940.0,104930.0,0.0256263]
[1738341457116,0.61390316,104940.0,104930.0,0.1776263]
[1738341457331,0.61390316,104940.0,104930.0,0.1746263]
[1738341457534,0.61390316,104940.0,104930.0,0.3185783]
[1738341457748,0.61390316,104940.0,104930.0,0.1606263]
[1738341457950,0.61390316,104940.0,104930.0,0.3175783]
[1738341458903,0.47096516,104940.0,104930.0,0.3175783]
[1738341459117,0.61390316,104940.0,104930.0,0.3175783]
[1738341459754,0.28530316,104940.0,104930.0,0.3175783]
[1738341461063,0.28530316,104940.0,104930.0,0.1746263]
[1738341461309,0.28530316,104940.0,104930.0,0.1596263]
[1738341461515,0.28530316,104940.0,104930.0,0.0096263]
[1738341462328,0.28530316,104940.0,104930.0,0.1525783]
[1738341462993,0.28530316,104940.0,104930.0,0.15784876]
[1738341464006,0.28530316,104940.0,104930.0,0.01489676]
[1738341464209,0.28530316,104940.0,104930.0,0.15784876]
[1738341465267,0.28530316,104940.0,104930.0,0.01489676]
[1738341465462,0.28530316,104940.0,104930.0,0.15784876]
[1738341465896,0.14236516,104940.0,104930.0,0.15784876]
[1738341466476,0.28530316,104940.0,104930.0,0.01489676]
[1738341466648,0.28530316,104940.0,104930.0,0.15784876]
[1738341466794,0.28530316,104940.0,104930.0,0.01489676]
[1738341467189,0.28530316,104940.0,104930.0,0.00527046]
[1738341468238,0.78915992,104940.0,104930.0,0.00527046]
[1738341468446,0.69180316,104940.0,104930.0,0.00527046]
[1738341468910,0.142952,104930.0,104920.0,0.00025599]
[1738341469127,0.36449674,104930.0,104920.0,0.00025599]
[1738341469315,0.36369516,104930.0,104920.0,0.00025599]
[1738341470329,0.36969516,104930.0,104920.0,0.00125599]
[1738341470735,0.268666,104920.0,104910.0,0.0782562]
[1738341470945,0.36590916,104920.0,104910.0,0.0782562]
[1738341471965,0.36690916,104920.0,104910.0,0.0782562]
[1738341472135,0.36990916,104920.0,104910.0,0.0782562]
[1738341475978,0.38897038,104920.0,104910.0,0.0782562]
[1738341484278,0.38897038,104920.0,104910.0,0.0742562]
[1738341485652,0.38497038,104920.0,104910.0,0.0742562]
[1738341485813,0.39397038,104920.0,104910.0,0.0752562]
[1738341486645,1.09397038,104920.0,104910.0,0.0752562]
[1738341488046,1.09897038,104920.0,104910.0,0.03670116]
[1738341488272,1.25614408,104920.0,104910.0,0.03670116]
[1738341488486,0.4200527,104910.0,104900.0,0.00025557]
[1738341488696,0.142993,104900.0,104890.0,0.00025557]
[1738341488919,0.24103774,104900.0,104890.0,0.00025557]
[1738341489092,0.24023616,104900.0,104890.0,0.00025557]
[1738341489349,0.36193616,104900.0,104890.0,0.00025557]
[1738341489940,0.36693616,104900.0,104890.0,0.00125557]
[1738341490510,0.38842814,104900.0,104890.0,0.00125557]
[1738341492502,0.39774934,104900.0,104890.0,0.00125557]
[1738341494232,1.09774934,104900.0,104890.0,0.00125557]
[1738341494605,1.1951061,104900.0,104890.0,0.00125557]
[1738341494813,1.09774934,104900.0,104890.0,0.00125557]
[1738341495206,0.39774934,104900.0,104890.0,0.00125557]
[1738341496182,0.55274934,104900.0,104890.0,0.00125557]
[1738341496348,0.55312304,104900.0,104890.0,0.00125557]
[1738341496541,1.3504798,104900.0,104890.0,0.00125557]
[1738341497495,1.09774934,104900.0,104890.0,0.00125557]
[1738341497915,1.09274934,104900.0,104890.0,0.00025557]
[1738341498385,1.09074934,104900.0,104890.0,0.00025557]
[1738341498631,0.39074934,104900.0,104890.0,0.00125557]
[1738341498823,0.40674934,104900.0,104890.0,0.00125557]
[1738341499036,0.32264934,104900.0,104890.0,0.00125557]
[1738341499245,0.26872814,104900.0,104890.0,0.00988187]
[1738341499448,0.27072814,104900.0,104890.0,0.00988187]
[1738341499655,0.27072814,104900.0,104890.0,0.15288787]
[1738341500112,0.26872814,104900.0,104890.0,0.15288787]
[1738341500323,0.26872814,104900.0,104890.0,0.00988187]
[1738341500781,0.25972814,104900.0,104890.0,0.15288787]
[1738341501002,0.09724316,104900.0,104890.0,0.15288787]
[1738341501235,0.10124316,104900.0,104890.0,0.15288787]
[1738341501465,0.24123616,104900.0,104890.0,0.15288787]
[1738341501674,0.24223616,104900.0,104890.0,0.00988187]
[1738341501883,0.24123616,104900.0,104890.0,0.15288787]
[1738341502309,0.24249215,104900.0,104890.0,0.15288787]
[1738341503789,0.24249215,104900.0,104890.0,0.00988187]
[1738341504001,0.24249215,104900.0,104890.0,0.00025557]
[1738341504201,0.24249215,104900.0,104890.0,0.00988187]
[1738341504921,0.24249215,104900.0,104890.0,0.15288787]
[1738341505084,0.24249215,104900.0,104890.0,0.00988187]
[1738341505812,0.24249215,104900.0,104890.0,0.00025557]
[1738341506649,0.24249215,104900.0,104890.0,0.00988187]
[1738341507869,0.24249215,104900.0,104890.0,0.15288787]
[1738341509168,0.09949915,104900.0,104890.0,0.15288787]
[1738341510219,1.11189215,104900.0,104890.0,0.15288787]
[1738341510440,1.11189215,104900.0,104890.0,0.14326157]
[1738341510590,1.11189215,104900.0,104890.0,0.15288787]
[1738341510933,0.96889915,104900.0,104890.0,0.15288787]
[1738341511137,1.11189215,104900.0,104890.0,0.15288787]
[1738341511303,1.11189215,104900.0,104890.0,0.14326157]
[1738341511540,1.11189215,104900.0,104890.0,0.00988187]
[1738341512227,1.11189215,104900.0,104890.0,0.00025557]
[1738341512422,1.11189215,104900.0,104890.0,0.00988187]
[1738341512886,1.11189215,104900.0,104890.0,0.15288787]
[1738341513959,0.96889915,104900.0,104890.0,0.23058787]
[1738341514377,1.51569915,104900.0,104890.0,0.23058787]
[1738341515026,1.51569915,104900.0,104890.0,0.24558787]
[1738341515589,1.51569915,104900.0,104890.0,0.23596157]
[1738341515794,1.51569915,104900.0,104890.0,0.16788787]
[1738341516602,1.65869215,104900.0,104890.0,0.16788787]
[1738341516808,1.65869215,104900.0,104890.0,0.00025557]
[1738341517706,0.43879215,104900.0,104890.0,0.00025557]
[1738341517921,0.52139215,104900.0,104890.0,0.00025557]
[1738341522810,0.53090238,104900.0,104890.0,0.00025557]
[1738341530592,0.39249215,104900.0,104890.0,0.00025557]
[1738341531015,0.47179215,104900.0,104890.0,0.00025557]
[1738341534125,0.56914891,104900.0,104890.0,0.00025557]
[1738341534559,0.47179215,104900.0,104890.0,0.00025557]
[1738341536402,0.51819215,104900.0,104890.0,0.00025557]
[1738341538395,0.15275043,104890.0,104880.0,0.00025557]
[1738341538556,0.25079517,104890.0,104880.0,0.00025557]
[1738341538750,0.24999359,104890.0,104880.0,0.00025557]
[1738341539517,0.47569359,104890.0,104880.0,0.00025557]
[1738341540104,0.47969359,104890.0,104880.0,0.00025557]
[1738341540322,0.48169359,104890.0,104880.0,0.00025557]
[1738341541311,0.29302,104880.0,104870.0,0.00025599]
[1738341541479,0.39026316,104880.0,104870.0,0.00025599]
[1738341542554,0.39926316,104880.0,104870.0,0.00025599]
[1738341542776,0.39526316,104880.0,104870.0,0.00025599]
[1738341543203,0.39926316,104880.0,104870.0,0.00025599]
[1738341543415,0.39026316,104880.0,104870.0,0.00025599]
[1738341543638,0.40026316,104880.0,104870.0,0.00025599]
[1738341544271,0.39426316,104880.0,104870.0,0.00025599]
[1738341545537,0.39526316,104880.0,104870.0,0.00025599]
[1738341545758,0.24526316,104880.0,104870.0,0.00025599]
[1738341545967,0.24526316,104880.0,104870.0,0.00988229]
[1738341546212,0.24526316,104880.0,104870.0,0.00025599]
[1738341546426,0.49261992,104880.0,104870.0,0.00025599]
[1738341546643,0.57521992,104880.0,104870.0,0.00025599]
[1738341546856,0.57421992,104880.0,104870.0,0.00025599]
[1738341547293,0.57021992,104880.0,104870.0,0.00025599]
[1738341547514,0.47386316,104880.0,104870.0,0.00025599]
[1738341547730,0.47286316,104880.0,104870.0,0.00025599]
[1738341548142,0.46417848,104880.0,104870.0,0.00025599]
[1738341549189,0.46817848,104880.0,104870.0,0.00025599]
[1738341549396,0.38757848,104880.0,104870.0,0.00025599]
[1738341552118,0.23757848,104880.0,104870.0,0.00025599]
[1738341552351,0.23757848,104880.0,104870.0,0.23551629]
[1738341552595,0.10324316,104880.0,104870.0,0.23551629]
[1738341553077,0.10124316,104880.0,104870.0,0.24110963]
[1738341553534,0.09824316,104880.0,104870.0,0.24110963]
[1738341553733,0.10024316,104880.0,104870.0,0.24110963]
[1738341554240,0.10024316,104880.0,104870.0,0.25610963]
[1738341555197,0.24306474,104880.0,104870.0,0.01547563]
[1738341555430,0.24226316,104880.0,104870.0,0.01547563]
[1738341555635,0.24226316,104880.0,104870.0,0.01647563]
[1738341555880,0.24026316,104880.0,104870.0,0.01647563]
[1738341556834,0.24026316,104880.0,104870.0,0.00684933]
[1738341557090,0.24026316,104880.0,104870.0,0.17450963]
[1738341558349,0.24026316,104880.0,104870.0,0.17350963]
[1738341558611,0.24026316,104880.0,104870.0,0.03047563]
[1738341558848,0.24126316,104880.0,104870.0,0.03047563]
[1738341559766,0.24026316,104880.0,104870.0,0.17350963]
[1738341560002,0.24026316,104880.0,104870.0,0.03047563]
[1738341560208,0.24026316,104880.0,104870.0,0.03147563]
[1738341560371,0.24026316,104880.0,104870.0,0.17450963]
[1738341561203,0.24026316,104880.0,104870.0,0.03147563]
[1738341562180,0.24026316,104880.0,104870.0,0.17450963]
[1738341563456,0.24026316,104880.0,104870.0,0.17850963]
[1738341566342,0.24026316,104880.0,104870.0,0.03547563]
[1738341567292,0.24026316,104880.0,104870.0,0.02047563]
[1738341567540,0.24026316,104880.0,104870.0,0.17850963]
[1738341568290,0.24026316,104880.0,104870.0,0.17750963]
[1738341568773,0.24126316,104880.0,104870.0,0.17750963]
[1738341569016,0.24226316,104880.0,104870.0,0.17750963]
[1738341569247,0.24026316,104880.0,104870.0,0.17750963]
[1738341569476,0.24026316,104880.0,104870.0,0.17850963]
[1738341570186,0.09724316,104880.0,104870.0,0.17850963]
[1738341570430,0.09724316,104880.0,104870.0,0.30066317]
[1738341570638,0.09724316,104880.0,104870.0,0.32944181]
[1738341570998,0.09749915,104880.0,104870.0,0.32844181]
[1738341571373,0.09749915,104880.0,104870.0,0.25760963]
[1738341575633,0.96689915,104880.0,104870.0,0.25760963]
[1738341579590,0.96689915,104880.0,104870.0,0.17850963]
[1738341584933,0.96689915,104880.0,104870.0,0.17946309]
[1738341585544,0.86965599,104880.0,104870.0,0.17946309]
[1738341587787,0.86965599,104880.0,104870.0,0.18880512]
[1738341588201,0.86965599,104880.0,104870.0,0.44986192]
[1738341588439,0.86965599,104880.0,104870.0,0.44890846]
[1738341588622,0.86965599,104880.0,104870.0,0.49100846]
[1738341592017,0.86965599,104880.0,104870.0,0.44890846]
[1738341593403,0.86965599,104880.0,104870.0,0.35798216]
[1738341593614,1.10991915,104880.0,104870.0,0.20826643]
[1738341593824,0.96689915,104880.0,104870.0,0.20826643]
[1738341594038,0.96689915,104880.0,104870.0,0.17850963]
[1738341594595,1.10991915,104880.0,104870.0,0.17850963]
[1738341597256,1.10991915,104880.0,104870.0,0.01084933]
[1738341597257,0.52001915,104880.0,104870.0,0.01084933]
[1738341597428,0.293034,104870.0,104860.0,0.00025599]
[1738341597657,0.51987716,104870.0,104860.0,0.00025599]
[1738341599078,0.51987716,104870.0,104860.0,0.00125599]
[1738341601999,0.51987716,104870.0,104860.0,0.00025599]
[1738341602356,0.51987716,104870.0,104860.0,0.00125599]
[1738341603021,0.418147,104860.0,104850.0,0.00050557]
[1738341603223,0.293061,104850.0,104840.0,0.0001219]
[1738341603456,0.51540416,104850.0,104840.0,0.0001219]
[1738341603703,0.60559348,104850.0,104840.0,0.0001219]
[1738341604718,0.51540416,104850.0,104840.0,0.0001219]
[1738341605025,1.21540416,104850.0,104840.0,0.0001219]
[1738341605238,1.21740416,104850.0,104840.0,0.0001219]
[1738341607380,0.51740416,104850.0,104840.0,0.0001219]
[1738341607800,0.52699671,104850.0,104840.0,0.0001219]
[1738341607948,0.54653468,104850.0,104840.0,0.0001219]
[1738341608366,0.64389144,104850.0,104840.0,0.0001219]
[1738341608565,0.54653468,104850.0,104840.0,0.0001219]
[1738341611224,0.26184213,104850.0,104840.0,0.1528232]
[1738341611398,0.26184213,104850.0,104840.0,0.0097482]
[1738341611828,0.26184213,104850.0,104840.0,0.1528232]
[1738341612029,0.25984213,104850.0,104840.0,0.1528232]
[1738341612289,0.25984213,104850.0,104840.0,0.0097482]
[1738341612491,0.26484213,104850.0,104840.0,0.1528232]
[1738341612912,0.25984213,104850.0,104840.0,0.1528232]
[1738341613279,0.26184213,104850.0,104840.0,0.1528232]
[1738341613495,0.26284213,104850.0,104840.0,0.1528232]
[1738341614241,0.26284213,104850.0,104840.0,0.0097482]
[1738341615052,0.26284213,104850.0,104840.0,0.1528232]
[1738341615264,0.003,104850.0,104840.0,0.24497693]
[1738341615470,0.003,104850.0,104840.0,0.3940232]
[1738341616517,0.001,104850.0,104840.0,0.3940232]
[1738341616928,0.002,104850.0,104840.0,0.3940232]
[1738341617133,0.001,104850.0,104840.0,0.3940232]
[1738341617342,0.001,104850.0,104840.0,0.3950232]
[1738341617981,0.001,104850.0,104840.0,0.3940232]
[1738341618195,0.001,104850.0,104840.0,0.3960232]
[1738341618643,0.001,104850.0,104840.0,0.40543072]
[1738341619178,0.001,104850.0,104840.0,0.41543072]
[1738341619382,0.001,104850.0,104840.0,0.50267388]
[1738341619589,0.001,104850.0,104840.0,0.55477388]
[1738341620218,0.8704,104850.0,104840.0,0.55477388]
[1738341624424,0.8704,104850.0,104840.0,0.45753072]
[1738341626538,0.001,104850.0,104840.0,0.58460961]
[1738341627638,0.001,104850.0,104840.0,0.56498331]
[1738341627848,0.001,104850.0,104840.0,0.58460961]
[1738341628278,0.001,104850.0,104840.0,0.55502388]
[1738341629834,0.001,104850.0,104840.0,0.58461984]
[1738341630764,1e-06,104850.0,104840.0,0.58461984]
[1738341631016,9.9e-07,104850.0,104840.0,0.58461984]
[1738341631276,9.9e-07,104850.0,104840.0,0.60461984]
[1738341632003,0.00025599,104870.0,104860.0,0.3126733]
[1738341632244,0.00025599,104870.0,104860.0,0.49131646]
[1738341632483,0.00025599,104870.0,104860.0,0.48169016]
[1738341632720,0.00025599,104870.0,104860.0,0.3940733]
[1738341634190,0.00025599,104870.0,104860.0,0.3950733]
[1738341634669,0.00125599,104870.0,104860.0,0.3940733]
[1738341634859,0.00025599,104870.0,104860.0,0.3970733]
[1738341635295,0.00125599,104870.0,104860.0,0.50431646]
[1738341636230,0.00125599,104870.0,104860.0,0.3970733]
[1738341636412,0.00125599,104870.0,104860.0,0.4067769]
[1738341638028,0.00125599,104870.0,104860.0,0.3303769]
[1738341642168,0.00125599,104870.0,104860.0,0.42762006]
[1738341642378,0.00125599,104870.0,104860.0,0.43762006]
[1738341642795,0.00125599,104870.0,104860.0,0.55692006]
[1738341643000,0.00125599,104870.0,104860.0,0.55777521]
[1738341643323,0.00125599,104870.0,104860.0,0.59671865]
[1738341646104,0.451445,104870.0,104860.0,0.61671865]
[1738341646726,0.413303,104870.0,104860.0,0.61671865]
[1738341646928,0.35609,104870.0,104860.0,0.61371865]
[1738341647135,0.35609,104870.0,104860.0,0.96959165]
[1738341647346,0.35709,104870.0,104860.0,0.97959165]
[1738341647767,0.338019,104870.0,104860.0,1.00812198]
[1738341647990,0.280806,104870.0,104860.0,0.97959165]
[1738341648190,0.261735,104870.0,104860.0,0.81399265]
[1738341648538,0.260735,104870.0,104860.0,0.77682865]
[1738341648751,0.260735,104870.0,104860.0,0.77282865]
[1738341648894,0.204522,104870.0,104860.0,0.78182865]
[1738341649340,0.204522,104870.0,104860.0,0.78482865]
[1738341649539,0.16638,104870.0,104860.0,0.84203865]
[1738341649948,0.128238,104870.0,104860.0,0.84203865]
[1738341650169,0.128238,104870.0,104860.0,0.86108042]
[1738341650527,0.128238,104870.0,104860.0,0.31679235]
[1738341650748,0.128238,104870.0,104860.0,0.21417549]
[1738341650945,0.675038,104870.0,104860.0,0.18457115]
[1738341651210,0.675038,104870.0,104860.0,0.33552465]
[1738341651415,0.675038,104870.0,104860.0,0.33457115]
[1738341651620,0.675038,104870.0,104860.0,0.18457115]
[1738341651830,0.675038,104870.0,104860.0,0.20052465]
[1738341652032,0.675038,104870.0,104860.0,0.34957115]
[1738341652865,0.675038,104870.0,104860.0,0.34982115]
[1738341653272,0.675038,104870.0,104860.0,0.33482115]
[1738341653408,0.675038,104870.0,104860.0,0.34982115]
[1738341653823,0.675038,104870.0,104860.0,0.45706431]
[1738341654013,0.675038,104870.0,104860.0,0.48672648]
[1738341654512,0.675038,104870.0,104860.0,0.48684838]
[1738341654715,0.12849399,104870.0,104860.0,0.56914838]
[1738341655615,0.12849399,104870.0,104860.0,2.06914838]
[1738341655820,0.12849399,104870.0,104860.0,0.56914838]
[1738341656658,0.12849399,104870.0,104860.0,0.48684838]
[1738341660477,0.12849399,104870.0,104860.0,0.49360838]
[1738341661094,0.12849399,104870.0,104860.0,0.51251097]
[1738341661499,0.12849399,104870.0,104860.0,0.37960522]
[1738341666058,0.12849399,104870.0,104860.0,0.48684838]
[1738341667119,0.12849399,104870.0,104860.0,0.56644838]
[1738341667302,0.12849399,104870.0,104860.0,0.56719838]
[1738341668244,0.12418636,104870.0,104860.0,0.56719838]
[1738341669407,0.12418636,104870.0,104860.0,0.58719838]
[1738341669613,0.08604436,104870.0,104860.0,0.58719838]
[1738341672620,0.08604436,104870.0,104860.0,0.56719838]
[1738341672831,0.08604436,104870.0,104860.0,0.58719838]
[1738341674889,0.08604436,104870.0,104860.0,0.51435838]
[1738341678458,0.57171198,104900.0,104890.0,0.0246263]
[1738341678659,0.04665599,104900.0,104890.0,0.26582864]
[1738341678869,0.57171198,104900.0,104890.0,0.29453763]
[1738341679093,0.52531198,104900.0,104890.0,0.30453763]
[1738341679297,0.00025599,104900.0,104890.0,0.45491133]
[1738341679486,0.00025599,104900.0,104890.0,0.45453763]
[1738341679711,0.00025599,104900.0,104890.0,0.43491133]
[1738341679920,0.00025599,104900.0,104890.0,0.44453763]
[1738341680119,0.00025599,104900.0,104890.0,0.45453763]
[1738341680963,0.00025599,104900.0,104890.0,0.45653763]
[1738341681687,0.00016833,104900.0,104890.0,0.45853763]
[1738341681836,0.00016833,104900.0,104890.0,0.45653763]
[1738341682025,0.00016833,104900.0,104890.0,0.46453763]
[1738341682435,0.00016833,104900.0,104890.0,0.46253763]
[1738341682647,0.52522432,104900.0,104890.0,0.47503172]
[1738341683239,0.52522432,104900.0,104890.0,0.49396485]
[1738341687729,0.52522432,104900.0,104890.0,0.51396485]
[1738341688178,0.42989432,104900.0,104890.0,0.51396485]
[1738341688569,0.04525599,104920.0,104910.0,0.3026053]
[1738341688764,0.04525599,104920.0,104910.0,0.34726747]
[1738341688953,0.12205599,104920.0,104910.0,0.3176053]
[1738341689929,0.12205599,104920.0,104910.0,0.3206053]
[1738341691465,0.12205599,104920.0,104910.0,0.3056053]
[1738341691685,0.12205599,104920.0,104910.0,0.3046053]
[1738341691894,0.12205599,104920.0,104910.0,0.3026053]
[1738341692100,0.12205599,104920.0,104910.0,0.3246053]
[1738341692928,0.12205599,104920.0,104910.0,0.3176053]
[1738341693132,0.12205599,104920.0,104910.0,0.3196053]
[1738341693339,0.12205599,104920.0,104910.0,0.3206053]
[1738341693751,0.12205599,104920.0,104910.0,0.310979]
[1738341693952,0.12205599,104920.0,104910.0,0.1706053]
[1738341694980,0.36306673,104920.0,104910.0,0.0276263]
[1738341695249,0.36226515,104920.0,104910.0,0.0126263]
[1738341695657,0.21929915,104920.0,104910.0,0.1706053]
[1738341695801,0.36226515,104920.0,104910.0,0.1706053]
[1738341696195,0.36226515,104920.0,104910.0,0.0246263]
[1738341696399,0.36226515,104920.0,104910.0,0.0647693]
[1738341696610,0.36226515,104920.0,104910.0,0.0627693]
[1738341696822,0.36326515,104920.0,104910.0,0.0477693]
[1738341697026,0.36326515,104920.0,104910.0,0.0246263]
[1738341697521,0.36326515,104920.0,104910.0,0.0096263]
[1738341698097,0.36326515,104920.0,104910.0,0.0246263]
[1738341698295,0.36226515,104920.0,104910.0,0.1676053]
[1738341698542,0.36626515,104920.0,104910.0,0.1676053]
[1738341698872,0.36626515,104920.0,104910.0,0.0256263]
[1738341699079,0.36626515,104920.0,104910.0,0.1686053]
[1738341699295,0.36226515,104920.0,104910.0,0.1686053]
[1738341699636,0.36326515,104920.0,104910.0,0.1686053]
[1738341700838,0.36326515,104920.0,104910.0,0.0256263]
[1738341701039,0.12305599,104920.0,104910.0,0.1686053]
[1738341701246,0.26602199,104920.0,104910.0,0.1686053]
[1738341701677,0.12305599,104920.0,104910.0,0.1686053]
[1738341702074,0.12305599,104920.0,104910.0,0.1676053]
[1738341702950,0.12205599,104920.0,104910.0,0.1676053]
[1738341703151,0.12205599,104920.0,104910.0,0.1706053]
[1738341703370,0.12205599,104920.0,104910.0,0.17155838]
[1738341703573,0.12205599,104920.0,104910.0,0.32155838]
[1738341703779,0.12205599,104920.0,104910.0,0.3206053]
[1738341704283,0.12205599,104920.0,104910.0,0.35029389]
[1738341707098,0.12205599,104920.0,104910.0,0.35965547]
[1738341707627,0.04525599,104920.0,104910.0,0.35965547]
[1738341708354,0.00025599,104920.0,104910.0,0.45689863]
[1738341711564,0.00025599,104920.0,104910.0,0.46689863]
[1738341716978,0.00025599,104920.0,104910.0,0.55249871]
[1738341718752,0.00025599,104920.0,104910.0,0.60970871]
[1738341718962,0.00025599,104920.0,104910.0,0.55249871]
[1738341719443,0.00025599,104920.0,104910.0,0.55149871]
[1738341719644,0.00025599,104920.0,104910.0,0.54949871]
[1738341720075,0.00025599,104920.0,104910.0,0.55649871]
[1738341721545,0.00025599,104920.0,104910.0,0.47089863]
[1738341723062,0.00025599,104920.0,104910.0,0.47389863]
[1738341723913,0.12835599,104920.0,104910.0,0.20165547]
[1738341724152,0.12835599,104920.0,104910.0,0.21665547]
[1738341724341,0.12835599,104920.0,104910.0,0.36665547]
[1738341724551,0.12835599,104920.0,104910.0,0.35165547]
[1738341724807,0.12835599,104920.0,104910.0,0.21665547]
[1738341724988,0.12835599,104920.0,104910.0,0.36665547]
[1738341725212,0.12835599,104920.0,104910.0,0.46389863]
[1738341725452,0.04675599,104920.0,104910.0,0.46389863]
[1738341725666,0.04675599,104920.0,104910.0,0.54949871]
[1738341727185,0.59355599,104920.0,104910.0,0.54949871]
[1738341727826,0.54705599,104920.0,104910.0,0.55949871]
[1738341728710,0.00025599,104920.0,104910.0,0.49389863]
[1738341730389,0.00025599,104920.0,104910.0,0.44889863]
[1738341730594,0.12865599,104920.0,104910.0,0.44889863]
[1738341730817,0.12865599,104920.0,104910.0,0.46389863]
[1738341732104,0.04675599,104920.0,104910.0,0.47389863]
[1738341732331,0.00025599,104920.0,104910.0,0.47389863]
[1738341732968,0.00025599,104920.0,104910.0,0.49389863]
[1738341733099,0.00025599,104920.0,104910.0,0.50160653]
[1738341733301,9.9e-07,104920.0,104910.0,0.50160653]
[1738341733643,0.546922,104940.0,104930.0,0.1675783]
[1738341733867,0.000122,104940.0,104930.0,0.29546287]
[1738341734065,0.000122,104940.0,104930.0,0.29451005]
[1738341735237,0.000122,104940.0,104930.0,0.29551005]
[1738341735458,1e-06,104940.0,104930.0,0.47551005]
[1738341735666,0.5919,104970.0,104960.0,0.3175373]
[1738341735895,0.0451,104970.0,104960.0,0.41478046]
[1738341736083,0.62265599,104980.0,104970.0,0.1675233]
[1738341736321,0.62265599,104980.0,104970.0,0.16847579]
[1738341736531,0.62265599,104980.0,104970.0,0.19816438]
[1738341736730,0.62265599,104980.0,104970.0,0.19721189]
[1738341736938,0.62265599,104980.0,104970.0,0.29445505]
[1738341737152,0.54705599,104980.0,104970.0,0.29445505]
[1738341738405,0.54705599,104980.0,104970.0,0.29645505]
[1738341740124,0.00025599,104980.0,104970.0,0.44645505]
[1738341742361,0.00025599,104980.0,104970.0,0.33958559]
[1738341742566,0.07705599,104980.0,104970.0,0.3195233]
[1738341743542,0.07705599,104980.0,104970.0,0.3045233]
[1738341744008,0.07705599,104980.0,104970.0,0.3195233]
[1738341744247,0.493904,104990.0,104980.0,0.3175103]
[1738341744451,0.33019754,105010.0,105000.0,0.3174833]
[1738341744651,0.0786,105020.0,105010.0,0.3174693]
[1738341744859,0.0787219,105030.0,105020.0,0.3174553]
[1738341745248,0.31264852,105030.0,105020.0,0.3174553]
[1738341745690,0.0787219,105030.0,105020.0,0.3174553]
[1738341746496,0.0786343,105030.0,105020.0,0.3174553]
[1738341747269,0.1243343,105030.0,105020.0,0.3174553]
[1738341747467,0.1243343,105030.0,105020.0,0.3214553]
[1738341747727,0.1243343,105030.0,105020.0,0.311829]
[1738341747907,0.1243343,105030.0,105020.0,0.3214553]
[1738341749065,0.1243343,105030.0,105020.0,0.3234553]
[1738341749686,0.1243343,105030.0,105020.0,0.33289056]
[1738341749893,0.0457343,105030.0,105020.0,0.33289056]
[1738341750107,3.43e-05,105030.0,105020.0,0.33289056]
[1738341751058,0.36509346,105030.0,105020.0,0.0156263]
[1738341751257,0.22227746,105030.0,105020.0,0.1584553]
[1738341751873,0.36509346,105030.0,105020.0,0.1584553]
[1738341752078,0.36509346,105030.0,105020.0,0.1714553]
[1738341752079,0.22227746,105030.0,105020.0,0.1714553]
[1738341752281,0.1250343,105030.0,105020.0,0.17240748]
[1738341752567,0.1250343,105030.0,105020.0,0.1714553]
[1738341753433,0.1250343,105030.0,105020.0,0.1524553]
[1738341753639,0.1250343,105030.0,105020.0,0.1674553]
[1738341755826,0.1250343,105030.0,105020.0,0.1524553]
[1738341756004,0.2678503,105030.0,105020.0,0.1524553]
[1738341756203,0.36509346,105030.0,105020.0,0.1534553]
[1738341757815,0.36509346,105030.0,105020.0,0.0106263]
[1738341758452,0.36509346,105030.0,105020.0,0.01088187]
[1738341759475,0.36509346,105030.0,105020.0,0.00125557]
[1738341760573,0.1250343,105030.0,105020.0,0.15371087]
[1738341760790,0.1280343,105030.0,105020.0,0.16771087]
[1738341761004,0.1280343,105030.0,105020.0,0.16871087]
[1738341761410,0.1250343,105030.0,105020.0,0.16771087]
[1738341762021,0.1270343,105030.0,105020.0,0.16771087]
[1738341762816,0.36709346,105030.0,105020.0,0.14308457]
[1738341763020,0.36709346,105030.0,105020.0,0.16771087]
[1738341763220,0.36509346,105030.0,105020.0,0.16771087]
[1738341763426,0.36509346,105030.0,105020.0,0.02488187]
[1738341763623,0.36509346,105030.0,105020.0,0.16771087]
[1738341763624,0.36609346,105030.0,105020.0,0.16771087]
[1738341763856,0.36609346,105030.0,105020.0,0.02488187]
[1738341764034,0.36609346,105030.0,105020.0,0.00025557]
[1738341765013,0.36509346,105030.0,105020.0,0.00025557]
[1738341765211,0.36509346,105030.0,105020.0,0.00125557]
[1738341765466,0.36509346,105030.0,105020.0,0.00025557]
[1738341766480,0.36809346,105030.0,105020.0,0.00025557]
[1738341767928,0.36909346,105030.0,105020.0,0.00125557]
[1738341768344,0.38822579,105030.0,105020.0,0.00125557]
[1738341770444,0.39790213,105030.0,105020.0,0.00125557]
[1738341776341,1.09790213,105030.0,105020.0,0.00125557]
[1738341777734,0.39790213,105030.0,105020.0,0.00125557]
[1738341781471,1.09790213,105030.0,105020.0,0.00125557]
[1738341786143,1.34525889,105030.0,105020.0,1e-08]
[1738341786347,1.24790213,105030.0,105020.0,1e-08]
[1738341789671,1.21994646,105030.0,105020.0,1e-08]
[1738341792348,1.21994646,105030.0,105020.0,0.000256]
[1738341792549,1.54854646,105030.0,105020.0,0.000256]
[1738341792776,1.54866836,105030.0,105020.0,0.000256]
[1738341793922,0.142843,105010.0,105000.0,0.00950006]
[1738341794093,0.24008616,105010.0,105000.0,0.00950006]
[1738341795144,0.00414844,105000.0,104990.0,0.20528313]
[1738341795302,0.00414844,105000.0,104990.0,0.19028313]
[1738341795494,0.00414844,105000.0,104990.0,0.19123549]
[1738341795833,0.00329515,105000.0,104990.0,0.19123549]